bitfinex-derivatives/quotes_SOLF0:USTF0_20260129
["timestamp","ask_amount","ask_price","bid_price","bid_amount"]
[1769729318941,7.95714194,117.77,117.68,7.6604]
[1769729319248,6.51772416,117.76,117.68,12.42169635]
[1769729319451,14.17412416,117.75,117.68,12.42169635]
[1769729319650,6.51772416,117.74,117.68,12.42169635]
[1769729319853,6.51772416,117.73,117.68,12.42169635]
[1769729320055,7.6564,117.75,117.68,12.42169635]
[1769729320253,6.51783522,117.74,117.68,12.42169635]
[1769729320553,6.51783522,117.73,117.68,12.42169635]
[1769729320755,7.6564,117.75,117.68,12.42169635]
[1769729320957,6.51790609,117.74,117.68,12.42169635]
[1769729321254,6.51790609,117.73,117.68,12.42169635]
[1769729321556,7.6564,117.75,117.68,12.42169635]
[1769729321853,6.51800634,117.74,117.68,12.42169635]
[1769729322056,6.51800634,117.73,117.68,12.42169635]
[1769729322253,7.6564,117.75,117.68,12.42169635]
[1769729322455,6.51810734,117.74,117.68,12.42169635]
[1769729322656,6.51810734,117.73,117.68,12.42169635]
[1769729322855,7.6564,117.75,117.68,12.42169635]
[1769729323062,6.51809938,117.74,117.68,12.42169635]
[1769729323356,6.51809938,117.73,117.68,12.42169635]
[1769729323658,7.6564,117.75,117.68,12.42169635]
[1769729323851,6.51804637,117.74,117.68,12.42169635]
[1769729324049,6.51804637,117.73,117.68,12.42169635]
[1769729324249,7.6564,117.75,117.68,12.42169635]
[1769729324451,6.51800221,117.74,117.68,12.42169635]
[1769729324759,6.51800221,117.73,117.68,4.76129635]
[1769729324962,7.6564,117.75,117.68,4.76129635]
[1769729325154,6.51800619,117.74,117.68,4.76129635]
[1769729325355,6.51800619,117.73,117.68,4.76129635]
[1769729325556,7.6571,117.74,117.68,4.76129635]
[1769729325855,6.51808889,117.73,117.68,4.76129635]
[1769729326052,7.6571,117.74,117.68,4.76129635]
[1769729326250,6.51808889,117.73,117.68,4.76129635]
[1769729326452,7.6571,117.74,117.68,4.76129635]
[1769729326659,6.51819636,117.73,117.68,4.76129635]
[1769729326853,7.6571,117.74,117.68,4.76129635]
[1769729327053,6.51819636,117.73,117.68,4.76129635]
[1769729327360,7.6571,117.74,117.68,4.76129635]
[1769729327550,6.51831006,117.73,117.68,4.76129635]
[1769729327746,7.6571,117.74,117.68,4.76129635]
[1769729327950,6.51831006,117.73,117.68,4.76129635]
[1769729328151,7.6571,117.74,117.68,4.76129635]
[1769729328352,6.51831006,117.73,117.68,4.76129635]
[1769729328651,7.6571,117.74,117.68,4.76129635]
[1769729328847,6.51809227,117.73,117.68,4.76129635]
[1769729329050,7.6571,117.74,117.68,4.76129635]
[1769729329353,6.51809227,117.73,117.68,4.76129635]
[1769729329553,7.6571,117.74,117.68,4.76129635]
[1769729329753,6.51828913,117.73,117.68,4.76129635]
[1769729329954,7.6571,117.74,117.68,4.76129635]
[1769729330154,6.51828913,117.73,117.68,4.76129635]
[1769729330352,7.6571,117.74,117.68,4.76129635]
[1769729330555,6.51848466,117.73,117.68,4.76129635]
[1769729330853,7.6573,117.73,117.68,4.76129635]
[1769729336258,6.51978646,117.72,117.68,4.76129635]
[1769729336458,7.6579,117.72,117.68,4.76129635]
[1769729344458,6.52199302,117.71,117.66,4.76129635]
[1769729344663,238.2327,117.73,117.66,4.76129635]
[1769729344963,7.6597,117.7,117.66,4.76129635]
[1769729348266,7.6597,117.7,117.64,12.42369635]
[1769729348461,7.6597,117.7,117.65,4.76129635]
[1769729349059,7.6598,117.69,117.65,4.76129635]
[1769729349755,7.6608,117.68,117.65,9.635e-05]
[1769729349957,2.43215753,117.69,117.62,339.18]
[1769729350166,2.43215753,117.67,117.62,339.18]
[1769729351361,10.09375753,117.67,117.62,339.18]
[1769729351762,2.43215753,117.67,117.62,339.18]
[1769729351962,2.43215753,117.67,117.62,342.44505019]
[1769729352271,2.43215753,117.67,117.63,3.26505019]
[1769729353368,7.6618,117.66,117.63,3.26505019]
[1769729355872,7.6618,117.66,117.63,5.019e-05]
[1769729357471,7.6625,117.65,117.63,5.019e-05]
[1769729357671,2.43215753,117.67,117.63,5.019e-05]
[1769729358364,7.6625,117.65,117.63,5.019e-05]
[1769729358560,2.43215753,117.67,117.62,300.07025019]
[1769729358763,2.43215753,117.67,117.62,286.74425019]
[1769729359373,2.43215753,117.67,117.62,248.13685019]
[1769729359570,7.6629,117.65,117.62,235.23785019]
[1769729359772,7.6629,117.65,117.62,207.20685019]
[1769729359968,7.6629,117.65,117.62,166.67145019]
[1769729360167,7.6629,117.65,117.62,140.66705019]
[1769729360573,7.6629,117.65,117.62,143.93210038]
[1769729361368,7.6629,117.65,117.63,5.019e-05]
[1769729363176,2.43215753,117.67,117.63,5.019e-05]
[1769729364275,7.6619,117.66,117.63,5.019e-05]
[1769729366874,5.80978856,117.64,117.61,3.27291908]
[1769729367373,9.06872973,117.64,117.6,3.27291908]
[1769729367779,5.80978856,117.64,117.6,3.27291908]
[1769729368576,3.25894117,117.67,117.6,3.27291908]
[1769729368984,3.25894117,117.66,117.6,3.27291908]
[1769729369178,3.25894117,117.65,117.6,3.27291908]
[1769729369374,3.25894117,117.65,117.59,257.8118216]
[1769729369581,7.6646,117.62,117.58,339.28]
[1769729370078,7.6646,117.62,117.53,62.0]
[1769729370079,3.25894117,117.6,117.53,62.0]
[1769729370274,3.25894117,117.58,117.48,25.11938763]
[1769729370491,3.25894117,117.58,117.49,339.3]
[1769729370683,7.6669,117.59,117.49,339.3]
[1769729371281,3.25894117,117.59,117.49,339.3]
[1769729371585,3.25894117,117.58,117.5,2.15448375]
[1769729372486,7.6677,117.57,117.51,2.15448375]
[1769729372686,3.25894117,117.54,117.47,2.15448375]
[1769729372886,3.25894117,117.5,117.45,1.47830335]
[1769729373081,3.25894117,117.49,117.4,2.15448375]
[1769729373383,10.93404117,117.46,117.4,2.15448375]
[1769729373582,10.93404117,117.46,117.4,0.67448375]
[1769729373782,3.26077874,117.48,117.4,0.67448375]
[1769729374384,3.573758,117.47,117.4,0.67448375]
[1769729375387,3.573758,117.46,117.37,7.6804]
[1769729375593,3.573758,117.46,117.36,0.67306199]
[1769729376390,3.573758,117.43,117.34,0.67306199]
[1769729376583,3.573758,117.42,117.34,0.67306199]
[1769729376783,3.573758,117.41,117.32,0.67306199]
[1769729376986,3.573758,117.4,117.32,0.67306199]
[1769729377394,3.573758,117.42,117.32,0.67306199]
[1769729378290,3.573758,117.42,117.34,0.67306199]
[1769729379585,3.573758,117.46,117.35,0.67306199]
[1769729379785,3.573758,117.46,117.37,0.67306199]
[1769729379987,3.573758,117.46,117.38,0.67306199]
[1769729380182,3.573758,117.48,117.39,0.67306199]
[1769729380386,3.573758,117.48,117.41,0.67306199]
[1769729380686,3.573758,117.51,117.43,0.67306199]
[1769729381493,3.573758,117.54,117.44,0.67306199]
[1769729381688,3.573758,117.54,117.44,120.07926199]
[1769729381881,3.573758,117.54,117.45,0.67306199]
[1769729382090,3.573758,117.54,117.43,121.57029124]
[1769729382296,3.573758,117.54,117.43,2.15429124]
[1769729383289,3.573758,117.53,117.42,189.0982]
[1769729383503,3.573758,117.53,117.42,69.6771]
[1769729383887,3.573758,117.51,117.4,9.15975536]
[1769729384196,3.573758,117.49,117.38,0.67306199]
[1769729384391,3.573758,117.49,117.38,120.13966199]
[1769729385292,3.573758,117.53,117.44,119.4041]
[1769729385497,3.573758,117.53,117.45,0.67306199]
[1769729385688,3.573758,117.53,117.42,119.4262]
[1769729385689,3.573758,117.53,117.42,120.09926199]
[1769729386093,3.573758,117.53,117.44,7.6757]
[1769729386794,3.573758,117.53,117.42,127.77646199]
[1769729386991,3.573758,117.53,117.42,120.09926199]
[1769729388000,3.573758,117.52,117.41,119.4354]
[1769729388296,3.573758,117.51,117.41,119.4354]
[1769729388492,3.573758,117.51,117.41,7.6778]
[1769729389387,3.573758,117.51,117.42,7.6771]
[1769729391790,3.573758,117.51,117.43,7.6765]
[1769729392188,3.573758,117.51,117.41,120.10916199]
[1769729392189,3.573758,117.51,117.42,120.09676199]
[1769729392599,3.573758,117.51,117.44,7.6759]
[1769729393395,3.573758,117.51,117.42,127.77366199]
[1769729393700,3.573758,117.51,117.42,8.34996199]
[1769729394601,3.573758,117.51,117.43,7.6765]
[1769729396298,3.573758,117.51,117.44,7.676]
[1769729396708,3.573758,117.51,117.44,8.35324589]
[1769729399102,3.573758,117.51,117.42,119.4245]
[1769729399103,3.573758,117.51,117.45,8.35244589]
[1769729399905,3.573758,117.51,117.46,7.6747]
[1769729401098,3.573758,117.51,117.45,0.67724589]
[1769729401099,10.95223697,117.55,117.48,0.67724589]
[1769729402004,3.28273697,117.58,117.5,0.67724589]
[1769729402211,3.28273697,117.62,117.53,0.67724589]
[1769729402395,119.2059,117.64,117.53,8.34684589]
[1769729402396,10.94773697,117.61,117.53,8.34684589]
[1769729402592,3.28273697,117.61,117.5,120.02074589]
[1769729402895,3.28273697,117.6,117.51,0.67724589]
[1769729403101,3.28273697,117.59,117.52,0.67724589]
[1769729403396,3.28273697,117.62,117.53,0.67724589]
[1769729403599,3.28273697,117.66,117.59,7.6661]
[1769729403805,3.28273697,117.66,117.58,0.67724589]
[1769729404302,3.28273697,117.66,117.59,0.67724589]
[1769729404892,3.28273697,117.66,117.56,189.62504589]
[1769729405196,3.28273697,117.66,117.56,8.34514589]
[1769729405397,3.28273697,117.66,117.54,7.6693]
[1769729405398,3.28273697,117.64,117.54,7.6693]
[1769729405600,3.28273697,117.64,117.54,8.34654589]
[1769729405800,3.28273697,117.64,117.54,127.65074589]
[1769729406196,3.28273697,117.64,117.57,0.67724589]
[1769729406705,3.28273697,117.64,117.57,8.34454589]
[1769729407806,3.28273697,117.64,117.57,0.67724589]
[1769729408109,3.28273697,117.64,117.55,8.34574589]
[1769729408301,3.28273697,117.63,117.55,0.67724589]
[1769729411415,3.28273697,117.62,117.53,0.67724589]
[1769729412909,3.28273697,117.61,117.53,0.67724589]
[1769729413714,10.94813697,117.61,117.53,0.67724589]
[1769729414010,3.28273697,117.6,117.53,0.67724589]
[1769729415309,3.28273697,117.59,117.53,0.67724589]
[1769729416713,10.94933697,117.59,117.53,0.67724589]
[1769729417310,10.95073697,117.57,117.51,0.67724589]
[1769729418017,7.6686,117.56,117.49,0.67724589]
[1769729418412,10.95133697,117.56,117.49,0.67724589]
[1769729420912,119.2675,117.58,117.48,7.6735]
[1769729420913,10.95173697,117.55,117.48,7.6735]
[1769729421114,10.95173697,117.55,117.48,8.35074589]
[1769729422825,10.95173697,117.55,117.49,0.67724589]
[1769729422826,3.28273697,117.55,117.49,0.67724589]
[1769729424023,10.95073697,117.57,117.5,0.67724589]
[1769729424427,10.95113697,117.56,117.48,0.67724589]
[1769729424732,3.28273697,117.55,117.48,0.67724589]
[1769729425325,3.28273697,117.55,117.48,8.35024589]
[1769729427831,10.95173697,117.55,117.48,8.35024589]
[1769729428732,11.09304249,117.54,117.48,0.67724589]
[1769729429926,11.09304249,117.54,117.48,8.35044589]
[1769729430231,3.42334249,117.56,117.49,0.68157216]
[1769729430632,7.6677,117.57,117.51,0.68157216]
[1769729432229,3.42334249,117.56,117.5,7.6721]
[1769729432429,3.42334249,117.56,117.5,8.35367216]
[1769729434934,3.42334249,117.56,117.51,7.6715]
[1769729437139,3.42334249,117.56,117.5,0.68157216]
[1769729438035,3.42334249,117.56,117.51,7.6712]
[1769729438635,11.12471929,117.58,117.52,7.6708]
[1769729439037,3.45771929,117.57,117.52,7.6708]
[1769729440234,3.45771929,117.56,117.5,7.6716]
[1769729440435,3.45771929,117.56,117.49,0.68756634]
[1769729441432,3.45771929,117.56,117.51,7.6713]
[1769729446039,3.45771929,117.56,117.52,7.6708]
[1769729448943,3.45771929,117.58,117.52,0.68756634]
[1769729449445,3.45771929,117.58,117.54,7.6695]
[1769729449737,3.45771929,117.58,117.53,0.68756634]
[1769729449943,3.45771929,117.58,117.51,120.01856634]
[1769729451443,3.45771929,117.58,117.53,7.6701]
[1769729451845,3.45771929,117.57,117.51,0.68756634]
[1769729452043,3.45771929,117.57,117.52,7.6707]
[1769729454848,3.45771929,117.57,117.53,7.67]
[1769729459154,3.45771929,117.57,117.54,7.6695]
[1769729460359,3.49661175,117.59,117.54,7.6695]
[1769729460559,6.49414459,117.58,117.54,7.6695]
[1769729460761,3.49661175,117.59,117.54,7.6695]
[1769729460960,9.99075634,117.58,117.54,7.6695]
[1769729461157,3.49661175,117.58,117.54,7.6695]
[1769729461460,6.49456217,117.57,117.54,7.6695]
[1769729461657,3.49661175,117.58,117.54,7.6695]
[1769729461857,6.49497898,117.57,117.54,7.6695]
[1769729462049,3.49661175,117.58,117.54,7.6695]
[1769729462361,6.49514432,117.57,117.54,7.6695]
[1769729462562,3.49661175,117.58,117.54,7.6695]
[1769729462765,6.49499138,117.57,117.54,7.6695]
[1769729462956,3.49661175,117.58,117.54,7.6695]
[1769729463262,6.49498618,117.57,117.54,7.6695]
[1769729463464,3.49661175,117.58,117.53,7.6701]
[1769729463665,6.49498795,117.57,117.53,7.6701]
[1769729463964,3.49661175,117.58,117.53,7.6701]
[1769729464153,6.49499055,117.57,117.53,7.6701]
[1769729464355,3.49661175,117.58,117.53,7.6701]
[1769729464560,6.4954116,117.57,117.53,7.6701]
[1769729464759,3.49661175,117.58,117.53,7.6701]
[1769729464959,6.49506835,117.57,117.53,7.6701]
[1769729465253,3.49661175,117.58,117.53,7.6701]
[1769729465459,6.49514777,117.57,117.53,7.6701]
[1769729465654,3.49661175,117.58,117.53,7.6701]
[1769729465858,6.49514777,117.57,117.54,7.6695]
[1769729466059,3.49661175,117.58,117.54,7.6695]
[1769729466260,6.49523748,117.57,117.54,7.6695]
[1769729466566,3.49661175,117.58,117.54,7.6695]
[1769729466767,6.4959929,117.57,117.54,7.6695]
[1769729467067,3.49661175,117.58,117.54,7.6695]
[1769729467268,6.49608713,117.57,117.54,7.6695]
[1769729467564,3.49661175,117.58,117.54,7.6695]
[1769729467761,6.49698533,117.57,117.54,7.6695]
[1769729467961,3.49661175,117.58,117.54,7.6695]
[1769729468163,6.49698533,117.57,117.54,7.6695]
[1769729468370,3.49661175,117.58,117.54,7.6695]
[1769729468557,6.49760709,117.57,117.52,0.68208537]
[1769729468864,3.49661175,117.58,117.53,7.6701]
[1769729469165,6.49760709,117.57,117.53,7.6701]
[1769729469365,3.49661175,117.58,117.53,7.6701]
[1769729469566,6.49764951,117.57,117.53,7.6701]
[1769729469769,3.49661175,117.58,117.53,8.35218537]
[1769729470067,6.49764951,117.57,117.53,8.35218537]
[1769729470365,3.49661175,117.58,117.53,8.35218537]
[1769729470565,6.49876003,117.57,117.53,8.35218537]
[1769729470867,3.49661175,117.58,117.53,8.35218537]
[1769729471067,6.49876003,117.57,117.53,8.35218537]
[1769729471367,3.49661175,117.58,117.53,8.35218537]
[1769729471564,6.49980987,117.57,117.53,8.35218537]
[1769729471767,3.49661175,117.58,117.53,8.35218537]
[1769729471960,6.49980987,117.57,117.53,8.35218537]
[1769729472160,3.49661175,117.58,117.53,8.35218537]
[1769729472360,6.49978525,117.57,117.53,8.35218537]
[1769729472561,3.49661175,117.58,117.53,8.35218537]
[1769729472761,6.50093129,117.57,117.53,8.35218537]
[1769729472961,3.49661175,117.58,117.53,8.35218537]
[1769729473162,6.50093129,117.57,117.53,8.35218537]
[1769729473370,3.49661175,117.58,117.53,8.35218537]
[1769729473560,6.50228386,117.57,117.53,8.35218537]
[1769729473762,3.49661175,117.58,117.53,8.35218537]
[1769729473959,6.50228386,117.57,117.53,8.35218537]
[1769729474261,3.49661175,117.58,117.53,8.35218537]
[1769729474457,6.50557204,117.57,117.53,8.35218537]
[1769729474661,3.49661175,117.58,117.53,8.35218537]
[1769729474866,6.50557204,117.57,117.53,8.35218537]
[1769729475069,3.49661175,117.58,117.53,8.35218537]
[1769729475270,6.50550088,117.57,117.53,8.35218537]
[1769729475473,3.49661175,117.58,117.53,8.35218537]
[1769729475670,6.50580832,117.57,117.53,8.35218537]
[1769729475868,3.49661175,117.58,117.53,8.35218537]
[1769729476069,6.50580832,117.57,117.53,8.35218537]
[1769729476272,3.49661175,117.58,117.53,8.35218537]
[1769729476465,6.50568018,117.57,117.53,8.35218537]
[1769729476666,3.49661175,117.58,117.53,8.35218537]
[1769729476865,6.50568018,117.57,117.53,8.35218537]
[1769729477067,3.49661175,117.58,117.53,8.35218537]
[1769729477272,6.50562864,117.57,117.53,8.35218537]
[1769729477468,3.49661175,117.58,117.53,8.35218537]
[1769729477668,6.50553205,117.57,117.53,8.35218537]
[1769729477968,3.49661175,117.58,117.53,8.35218537]
[1769729478169,6.50553205,117.57,117.53,8.35218537]
[1769729478471,3.49661175,117.58,117.53,8.35218537]
[1769729478669,6.50539326,117.57,117.54,0.68208537]
[1769729478869,11.16301175,117.59,117.54,0.68208537]
[1769729479074,17.66899443,117.58,117.52,8.35288537]
[1769729479269,6.50538268,117.57,117.52,8.35288537]
[1769729479576,11.16361175,117.58,117.52,8.35288537]
[1769729479776,6.50523707,117.57,117.53,0.68208537]
[1769729480073,11.16361175,117.58,117.53,0.68208537]
[1769729480274,6.50521414,117.57,117.53,0.68208537]
[1769729480474,11.16361175,117.58,117.53,0.68208537]
[1769729480675,6.50512913,117.57,117.53,0.68208537]
[1769729480876,11.16361175,117.58,117.53,0.68208537]
[1769729481076,6.50512913,117.57,117.53,0.68208537]
[1769729481278,11.16361175,117.58,117.53,0.68208537]
[1769729481477,6.50503439,117.57,117.53,0.68208537]
[1769729481679,11.16361175,117.58,117.53,0.68208537]
[1769729481878,6.50503439,117.57,117.53,0.68208537]
[1769729482076,7.6664,117.59,117.54,0.68208537]
[1769729482372,6.5042949,117.58,117.54,0.68208537]
[1769729482577,3.49661175,117.58,117.54,0.68208537]
[1769729482778,7.6664,117.59,117.54,0.68208537]
[1769729482985,6.50464641,117.58,117.54,0.68208537]
[1769729483278,7.6664,117.59,117.54,0.68208537]
[1769729483478,6.50397678,117.58,117.54,0.68208537]
[1769729483671,7.6664,117.59,117.54,0.68208537]
[1769729483873,6.50397678,117.58,117.54,0.68208537]
[1769729484070,7.6664,117.59,117.54,0.68208537]
[1769729484274,6.50331295,117.58,117.54,0.68208537]
[1769729484569,7.6664,117.59,117.54,0.68208537]
[1769729484777,6.50318477,117.58,117.54,0.68208537]
[1769729484973,11.16301175,117.59,117.54,0.68208537]
[1769729485283,6.50323947,117.58,117.54,0.68208537]
[1769729485481,10.92777874,117.58,117.53,7.6702]
[1769729485979,10.92777874,117.58,117.53,8.35671054]
[1769729486283,3.26077874,117.58,117.53,8.35671054]
[1769729486980,3.26077874,117.58,117.53,7.6702]
[1769729487483,3.26077874,117.58,117.53,8.35671054]
[1769729487780,7.6664,117.59,117.51,0.68651054]
[1769729487781,9.76383779,117.57,117.51,0.68651054]
[1769729487981,6.50305905,117.56,117.51,0.68651054]
[1769729488183,3.26077874,117.57,117.51,0.68651054]
[1769729488486,9.76436337,117.56,117.51,8.35791054]
[1769729488676,9.76436337,117.56,117.48,521.004]
[1769729488677,3.26077874,117.56,117.48,62.0]
[1769729488978,3.26077874,117.54,117.47,0.68651054]
[1769729490285,3.26077874,117.54,117.49,7.6728]
[1769729490678,3.26077874,117.54,117.49,8.35931054]
[1769729491274,3.26077874,117.58,117.51,0.68651054]
[1769729491478,6.4759595,117.57,117.51,0.68651054]
[1769729491676,3.26077874,117.58,117.51,0.68651054]
[1769729491884,6.47595552,117.57,117.51,8.35791054]
[1769729492082,3.26077874,117.58,117.51,8.35791054]
[1769729492293,6.47615206,117.57,117.51,8.35791054]
[1769729492479,3.26077874,117.58,117.51,8.35791054]
[1769729492784,3.26077874,117.58,117.52,0.68651054]
[1769729494781,3.57573633,117.56,117.48,0.67515368]
[1769729494986,3.57573633,117.54,117.48,0.67515368]
[1769729496482,3.57573633,117.54,117.48,8.34815368]
[1769729497589,3.57573633,117.54,117.49,7.6727]
[1769729504091,3.57573633,117.54,117.49,8.34785368]
[1769729508493,3.57573633,117.54,117.49,0.67515368]
[1769729508696,3.57573633,117.54,117.48,8.34855368]
[1769729509491,3.57573633,117.54,117.49,7.6727]
[1769729509692,3.57573633,117.54,117.49,8.34785368]
[1769729511299,3.57573633,117.54,117.48,7.6734]
[1769729513302,11.24533633,117.54,117.48,7.6734]
[1769729513501,3.57573633,117.53,117.48,7.6734]
[1769729515096,119.2569,117.59,117.5,0.67515368]
[1769729515097,3.57573633,117.55,117.5,0.67515368]
[1769729515494,3.33561655,117.58,117.5,0.67515368]
[1769729515694,9.79471408,117.57,117.51,7.6714]
[1769729515895,3.33561655,117.57,117.51,7.6714]
[1769729516702,3.33561655,117.57,117.51,0.67676216]
[1769729517094,3.33561655,117.59,117.53,7.6701]
[1769729517298,9.79495626,117.58,117.53,8.34686216]
[1769729517597,3.33561655,117.58,117.53,8.34686216]
[1769729519808,3.33561655,117.61,117.54,0.67676216]
[1769729519998,6.59895289,117.6,117.54,0.67676216]
[1769729520198,3.33561655,117.61,117.54,0.67676216]
[1769729520399,9.9345801,117.6,117.55,0.67676216]
[1769729520600,3.33561655,117.6,117.55,0.67676216]
[1769729521398,3.33561655,117.6,117.53,0.67676216]
[1769729521606,3.33561655,117.6,117.5,181.3422]
[1769729521607,3.33561655,117.58,117.52,0.67676216]
[1769729522608,6.59974961,117.57,117.5,0.67676216]
[1769729522808,3.33561655,117.58,117.5,0.67676216]
[1769729523005,6.59974698,117.57,117.5,0.67676216]
[1769729523209,3.33561655,117.58,117.5,0.67676216]
[1769729523409,6.60014422,117.57,117.51,8.34806216]
[1769729523609,3.33561655,117.58,117.51,8.34806216]
[1769729523810,6.60014422,117.57,117.51,8.34806216]
[1769729524011,3.33561655,117.58,117.51,8.34806216]
[1769729524308,6.60042074,117.57,117.51,8.34806216]
[1769729524509,3.33561655,117.58,117.51,8.34806216]
[1769729524811,6.60082427,117.57,117.51,8.34806216]
[1769729525012,3.33561655,117.57,117.51,8.34806216]
[1769729526415,9.93773511,117.56,117.51,7.6713]
[1769729526712,3.33561655,117.55,117.51,7.6713]
[1769729529009,3.33561655,117.55,117.52,7.6708]
[1769729530317,3.33561655,117.57,117.52,7.6708]
[1769729530514,6.6070327,117.56,117.52,7.6708]
[1769729530714,3.33561655,117.57,117.52,7.6708]
[1769729530918,6.6070327,117.56,117.52,7.6708]
[1769729531119,3.33561655,117.57,117.52,7.6708]
[1769729531422,6.60859861,117.56,117.52,7.6708]
[1769729531717,3.33561655,117.57,117.52,7.6708]
[1769729531914,6.60859861,117.56,117.52,7.6708]
[1769729532215,3.33561655,117.57,117.52,7.6708]
[1769729532521,6.60989465,117.56,117.52,7.6708]
[1769729532721,3.33561655,117.57,117.52,7.6708]
[1769729532921,6.60989465,117.56,117.52,7.6708]
[1769729533117,3.33561655,117.57,117.52,7.6708]
[1769729533317,6.61038683,117.56,117.52,7.6708]
[1769729533512,3.33561655,117.57,117.52,7.6708]
[1769729533819,3.33561655,117.55,117.52,7.6708]
[1769729535223,6.61151574,117.54,117.49,120.03006216]
[1769729535424,3.33561655,117.55,117.49,120.03006216]
[1769729535616,6.61187543,117.54,117.49,120.03006216]
[1769729535817,3.33561655,117.55,117.49,120.03006216]
[1769729536019,6.61187807,117.54,117.49,120.03006216]
[1769729536220,3.33561655,117.55,117.49,120.03006216]
[1769729536420,6.61166679,117.54,117.51,7.6713]
[1769729536623,6.61166679,117.53,117.51,4.85176227]
[1769729536827,3.33561655,117.55,117.49,0.67676216]
[1769729537019,6.61199235,117.54,117.49,0.67676216]
[1769729537220,6.61199235,117.53,117.49,0.67676216]
[1769729537427,3.33561655,117.55,117.5,7.6716]
[1769729537617,6.61213839,117.54,117.5,7.6716]
[1769729537818,6.61213839,117.53,117.5,7.6716]
[1769729538018,3.33561655,117.55,117.5,7.6716]
[1769729538225,6.6130271,117.54,117.5,7.6716]
[1769729538426,6.6130271,117.53,117.5,7.6716]
[1769729538628,3.33561655,117.55,117.5,7.6716]
[1769729538820,6.61280851,117.54,117.5,7.6716]
[1769729539121,6.61280851,117.53,117.5,7.6716]
[1769729539320,3.33561655,117.55,117.5,7.6716]
[1769729539522,6.61324957,117.54,117.5,7.6716]
[1769729539720,6.61324957,117.53,117.5,7.6716]
[1769729539919,3.33561655,117.55,117.5,7.6716]
[1769729540121,6.61324957,117.54,117.5,7.6716]
[1769729540321,6.61324957,117.53,117.5,7.6716]
[1769729540522,3.33561655,117.55,117.5,7.6716]
[1769729540718,6.61281991,117.54,117.5,7.6716]
[1769729540921,6.61281991,117.53,117.5,7.6716]
[1769729541122,3.33561655,117.55,117.5,7.6716]
[1769729541424,6.61242118,117.54,117.5,7.6716]
[1769729541626,6.61242118,117.53,117.5,7.6716]
[1769729541814,3.33561655,117.55,117.5,7.6716]
[1769729542018,6.61231462,117.54,117.5,7.6716]
[1769729542215,6.61231462,117.53,117.5,7.6716]
[1769729542427,3.33561655,117.55,117.5,7.6716]
[1769729542725,6.61211959,117.54,117.5,7.6716]
[1769729542915,7.92842679,117.56,117.52,1.73544257]
[1769729543114,3.33561655,117.57,117.52,1.73544257]
[1769729543819,3.33561655,117.57,117.52,9.40604257]
[1769729547430,3.30393185,117.59,117.53,1.73629044]
[1769729548426,3.30393185,117.59,117.54,7.669]
[1769729548627,3.30393185,117.59,117.53,1.73629044]
[1769729549325,3.30393185,117.59,117.53,9.40649044]
[1769729549823,3.30393185,117.59,117.54,7.6693]
[1769729550023,3.30393185,117.59,117.54,9.40559044]
[1769729550225,3.30393185,117.61,117.54,1.73629044]
[1769729550531,3.30393185,117.61,117.56,7.6682]
[1769729550931,3.30393185,117.61,117.56,9.40449044]
[1769729553631,3.30393185,117.61,117.57,7.6676]
[1769729555832,220.29452822,117.63,117.58,1.73511469]
[1769729556034,3.29452822,117.65,117.58,1.73511469]
[1769729557533,3.29452822,117.65,117.6,7.6655]
[1769729558834,3.29452822,117.65,117.61,7.6649]
[1769729559628,3.29452822,117.65,117.6,120.97751469]
[1769729559835,3.29452822,117.67,117.6,120.97751469]
[1769729560025,3.29452822,117.67,117.6,1.73511469]
[1769729561336,3.29452822,117.67,117.61,7.6644]
[1769729562634,3.29452822,117.67,117.62,7.6643]
[1769729564635,3.29452822,117.67,117.6,7.6651]
[1769729565234,3.29452822,117.66,117.6,7.6651]
[1769729565436,3.29452822,117.66,117.58,9.40161469]
[1769729565637,3.29452822,117.65,117.58,7.6665]
[1769729566039,3.29452822,117.64,117.58,7.6665]
[1769729566235,3.29452822,117.64,117.56,1.73511469]
[1769729566446,3.29452822,117.64,117.57,7.6676]
[1769729567442,3.29452822,117.63,117.57,7.6676]
[1769729568137,9.74521651,117.62,117.57,7.6676]
[1769729568338,3.29452822,117.62,117.57,7.6676]
[1769729570748,3.29452822,117.62,117.55,9.40371469]
[1769729572550,3.29452822,117.62,117.56,1.73511469]
[1769729574645,3.29452822,117.62,117.56,9.40321469]
[1769729576456,3.29452822,117.62,117.57,1.74043705]
[1769729578557,3.29452822,117.62,117.56,7.6681]
[1769729579351,3.29452822,117.62,117.56,9.40853705]
[1769729584563,10.95892822,117.62,117.56,9.40853705]
[1769729585354,11.01353442,117.63,117.57,1.74043705]
[1769729585556,6.4518945,117.62,117.57,1.74043705]
[1769729585762,11.01353442,117.63,117.57,1.74043705]
[1769729585956,6.45188137,117.62,117.57,1.74043705]
[1769729586157,11.01353442,117.63,117.57,1.74043705]